[Event "Hungarian Junior Rapid-ch 2024"]
[Site "Budapest"]
[Date "2024.03.23"]
[Round "6"]
[White "Szalay-Ocsak, Bank"]
[Black "Palczert, Matyas"]
[Result "0-1"]
[ECO "C55"]
[WhiteElo "2174"]
[BlackElo "2297"]
[Annotator "RC"]
[PlyCount "108"]
[EventDate "2024.03.20"]
[EventType "swiss"]
[EventCountry "HUN"]
[SourceTitle "playchess.com"]
[Source "ChessBase"]
[SourceQuality "1"]
[TimeControl "600+5"]

1. e4 {[%emt 0:00:03]} e5 {[%emt 0:00:04]} 2. Nf3 {[%emt 0:00:02]} Nc6 {[%emt 0:00:01]} 3. Bc4 {[%emt 0:00:33]} Nf6 {[%emt 0:00:02]} 4. d3 {[%emt 0:00:01]} d5 {[%emt 0:00:02]} 5. exd5 {[%emt 0:00:05]} Nxd5 {[%emt 0:00:02]} 6. O-O {[%emt 0:00:52]} Bc5 {[%emt 0:00:13]} 7. Bg5 {[%emt 0:00:37]} f6 {[%emt 0:00:14]} 8. Bd2 {[%emt 0:00:02]} O-O {[%emt 0:00:13]} 9. Nc3 {[%emt 0:00:13]} Be6 {[%emt 0:00:02]} 10. Qe2 {[%emt 0:00:58]} Kh8 {[%emt 0:00:17]} 11. Nxd5 {[%emt 0:00:23]} Bxd5 {[%emt 0:00:04]} 12. Bxd5 {[%emt 0:00:19]} Qxd5 {[%emt 0:00:05]} 13. Be3 {[%emt 0:00:35]} Rae8 {[%emt 0:00:31]} 14. Bxc5 {[%emt 0:00:53]} Qxc5 {[%emt 0:00:01]} 15. c3 {[%emt 0:00:26]} Qd5 {[%emt 0:00:15]} 16. a4 {[%emt 0:01:53]} Rd8 {[%emt 0:00:17]} 17. Rfd1 {[%emt 0:00:12]} Ne7 {[%emt 0:00:44]} 18. Qe4 {[%emt 0:00:29]} Ng6 {[%emt 0:00:55]} 19. g3 {[%emt 0:01:07]} Qb3 {[%emt 0:00:31]} 20. Qb4 {[%emt 0:00:42]} Qxb4 {[%emt 0:00:03]} 21. cxb4 {[%emt 0:00:00]} Ne7 {[%emt 0:00:07]} 22. b5 {[%emt 0:00:07]} Nf5 {[%emt 0:00:11]} 23. Rac1 {[%emt 0:00:04]} Rf7 {[%emt 0:00:07]} 24. b3 {[%emt 0:00:13]} Rfd7 {[%emt 0:00:16]} 25. Rc4 {[%emt 0:00:10]} Kg8 {[%emt 0:00:08]} 26. Kg2 {[%emt 0:00:05]} Kf7 {[%emt 0:00:25]} 27. Rdc1 {[%emt 0:00:00]} Rxd3 {[%emt 0:00:13]} 28. Rxc7+ {[%emt 0:00:02]} R3d7 {[%emt 0:00:08]} 29. g4 {[%emt 0:00:43]} Ne7 {[%emt 0:00:03]} 30. Ne1 {[%emt 0:00:34]} Ke6 {[%emt 0:00:12]} 31. Kf3 {[%emt 0:00:07]} g6 {[%emt 0:00:13]} 32. Ke2 {[%emt 0:00:02]} Nd5 {[%emt 0:00:08]} 33. Rxd7 {[%emt 0:00:01]} Nf4+ {[%emt 0:00:02]} 34. Kf1 {[%emt 0:00:10]} Rxd7 {[%emt 0:00:02]} 35. Ng2 {[%emt 0:00:01]} Nxg2 {[%emt 0:00:35]} 36. Kxg2 {[%emt 0:00:01]} e4 {[%emt 0:00:02]} 37. Rc2 {[%emt 0:00:04]} Ke5 {[%emt 0:00:03]} 38. f3 {[%emt 0:00:15]} e3 {[%emt 0:00:13]} 39. Kf1 {[%emt 0:00:01]} Kf4 40. Ke2 Rd2+ {[%emt 0:00:16]} 41. Rxd2 {[%emt 0:00:01]} exd2 {[%emt 0:00:01]} 42. Kxd2 {[%emt 0:00:00]} Kxf3 {[%emt 0:00:02]} 43. b4 {[%emt 0:00:18]} Kxg4 {[%emt 0:00:03]} 44. a5 {[%emt 0:00:00]} b6 {[%emt 0:00:17]} 45. a6 {[%emt 0:00:02]} f5 {[%emt 0:00:02]} 46. Ke3 {[%emt 0:00:01]} f4+ {[%emt 0:00:01]} 47. Kd4 {[%emt 0:00:01]} Kh3 {[%emt 0:00:03]} 48. Kd5 {[%emt 0:00:01]} f3 {[%emt 0:00:00]} 49. Kc6 {[%emt 0:00:02]} f2 {[%emt 0:00:02]} 50. Kb7 {[%emt 0:00:01]} f1=Q {[%emt 0:00:03]} 51. Kxa7 {[%emt 0:00:02]} Qxb5 {[%emt 0:00:03]} 52. Kb7 {[%emt 0:00:06]} Qxb4 {[%emt 0:00:03]} 53. a7 {[%emt 0:00:01]} Qa5 {[%emt 0:00:01]} 54. a8=N {[%emt 0:00:02]} Qxa8+ {[%emt 0:00:01]} 0-1

[Event "Hungarian Junior Rapid-ch 2024"]
[Site "Budapest"]
[Date "2024.03.23"]
[Round "6"]
[White "Csernyik, Mark"]
[Black "Karacsonyi, Gellert"]
[Result "1/2-1/2"]
[ECO "B35"]
[WhiteElo "2016"]
[BlackElo "2386"]
[Annotator "RC"]
[PlyCount "100"]
[EventDate "2024.03.20"]
[EventType "swiss"]
[EventCountry "HUN"]
[SourceTitle "playchess.com"]
[Source "ChessBase"]
[SourceQuality "1"]
[TimeControl "600+5"]

1. e4 {[%emt 0:00:02]} c5 {[%emt 0:00:01]} 2. Nf3 {[%emt 0:00:02]} Nc6 {[%emt 0:00:01]} 3. d4 {[%emt 0:00:01]} cxd4 {[%emt 0:00:00]} 4. Nxd4 {[%emt 0:00:02]} g6 {[%emt 0:00:01]} 5. Nc3 {[%emt 0:00:05]} Bg7 {[%emt 0:00:01]} 6. Be3 {[%emt 0:00:01]} Nf6 {[%emt 0:00:02]} 7. Bc4 {[%emt 0:00:03]} O-O {[%emt 0:00:02]} 8. Bb3 {[%emt 0:00:34]} Re8 {[%emt 0:00:01]} 9. O-O {[%emt 0:00:24]} d6 {[%emt 0:00:01]} 10. f3 {[%emt 0:00:15]} Na5 {[%emt 0:00:02]} 11. Qd2 {[%emt 0:00:10]} Nxb3 {[%emt 0:00:17]} 12. axb3 {[%emt 0:00:04]} a6 {[%emt 0:01:02]} 13. Nd5 {[%emt 0:00:10]} Nxd5 {[%emt 0:00:16]} 14. exd5 {[%emt 0:00:03]} e5 {[%emt 0:00:32]} 15. dxe6 {[%emt 0:00:16]} fxe6 {[%emt 0:00:01]} 16. Rad1 {[%emt 0:00:07]} Qc7 {[%emt 0:00:12]} 17. c4 {[%emt 0:00:09]} b6 {[%emt 0:01:00]} 18. Bh6 {[%emt 0:00:27]} Bxh6 {[%emt 0:02:14]} 19. Qxh6 {[%emt 0:00:03]} e5 {[%emt 0:00:02]} 20. Nc2 {[%emt 0:00:10]} b5 {[%emt 0:00:10]} 21. Ne3 {[%emt 0:00:07]} Be6 {[%emt 0:00:02]} 22. Kh1 {[%emt 0:01:47]} bxc4 {[%emt 0:00:18]} 23. bxc4 {[%emt 0:00:02]} Rab8 {[%emt 0:00:02]} 24. Rd2 {[%emt 0:00:06]} Rb6 {[%emt 0:00:23]} 25. h4 {[%emt 0:00:40]} a5 {[%emt 0:01:26]} 26. f4 {[%emt 0:00:38]} Qg7 {[%emt 0:00:16]} 27. Qg5 {[%emt 0:00:56]} exf4 {[%emt 0:01:15]} 28. Rxf4 {[%emt 0:00:36]} Qe5 {[%emt 0:00:02]} 29. Qxe5 {[%emt 0:01:37]} dxe5 {[%emt 0:00:01]} 30. Re4 {[%emt 0:00:02]} Bf5 {[%emt 0:00:28]} 31. Nxf5 {[%emt 0:00:04]} gxf5 {[%emt 0:00:01]} 32. Ree2 {[%emt 0:00:15]} Rh6 {[%emt 0:00:47]} 33. Rd5 {[%emt 0:00:22]} Rxh4+ {[%emt 0:00:03]} 34. Kg1 {[%emt 0:00:01]} e4 {[%emt 0:01:18]} 35. Rxf5 {[%emt 0:00:07]} e3 {[%emt 0:00:02]} 36. Rxa5 {[%emt 0:00:21]} Rxc4 {[%emt 0:00:01]} 37. Ra3 {[%emt 0:00:05]} Rce4 {[%emt 0:00:03]} 38. g3 {[%emt 0:00:09]} Kg7 {[%emt 0:00:05]} 39. Kg2 {[%emt 0:00:02]} R4e7 {[%emt 0:00:31]} 40. Kf3 {[%emt 0:00:16]} Rf8+ {[%emt 0:00:01]} 41. Kg2 {[%emt 0:00:02]} Rb8 {[%emt 0:00:11]} 42. Raxe3 {[%emt 0:00:05]} Rxe3 {[%emt 0:00:02]} 43. Rxe3 {[%emt 0:00:01]} Rxb2+ {[%emt 0:00:01]} 44. Kh3 {[%emt 0:00:01]} Kg6 {[%emt 0:00:02]} 45. Re6+ {[%emt 0:00:02]} Kg5 {[%emt 0:00:01]} 46. Ra6 {[%emt 0:00:02]} Rb5 {[%emt 0:00:03]} 47. Ra7 {[%emt 0:00:03]} h5 {[%emt 0:00:01]} 48. Ra4 {[%emt 0:00:02]} Rb3 {[%emt 0:00:01]} 49. Ra5+ {[%emt 0:00:01]} Kg6 {[%emt 0:00:02]} 50. Ra6+ {[%emt 0:00:01]} Kg5 1/2-1/2

[Event "Hungarian Junior Rapid-ch 2024"]
[Site "Budapest"]
[Date "2024.03.23"]
[Round "7"]
[White "Karacsonyi, Gellert"]
[Black "Reviczki, Roland"]
[Result "1-0"]
[ECO "B30"]
[WhiteElo "2386"]
[BlackElo "2238"]
[Annotator "RC"]
[PlyCount "71"]
[EventDate "2024.03.20"]
[EventType "swiss"]
[EventCountry "HUN"]
[SourceTitle "playchess.com"]
[Source "ChessBase"]
[SourceQuality "1"]
[TimeControl "600+5"]

1. e4 {[%emt 0:00:01]} c5 {[%emt 0:00:10]} 2. Nf3 {[%emt 0:00:01]} Nc6 {[%emt 0:00:01]} 3. Nc3 {[%emt 0:00:01]} e5 {[%emt 0:00:10]} 4. Bc4 {[%emt 0:00:02]} d6 {[%emt 0:00:10]} 5. d3 {[%emt 0:00:09]} Be7 {[%emt 0:00:01]} 6. Nd2 {[%emt 0:00:02]} Nf6 {[%emt 0:00:02]} 7. Nf1 {[%emt 0:00:04]} Bg4 {[%emt 0:00:03]} 8. f3 {[%emt 0:00:01]} Be6 {[%emt 0:00:01]} 9. Ne3 {[%emt 0:00:03]} O-O {[%emt 0:00:14]} 10. O-O {[%emt 0:00:02]} Rb8 {[%emt 0:00:01]} 11. a4 {[%emt 0:00:03]} Nb4 {[%emt 0:00:04]} 12. Qe2 {[%emt 0:00:32]} Nh5 {[%emt 0:01:05]} 13. Ncd5 {[%emt 0:00:25]} Nxd5 {[%emt 0:00:12]} 14. Nxd5 {[%emt 0:00:04]} Bg5 {[%emt 0:00:09]} 15. f4 {[%emt 0:01:14]} Nxf4 {[%emt 0:01:07]} 16. Nxf4 {[%emt 0:00:01]} Bxf4 {[%emt 0:00:05]} 17. Bxf4 {[%emt 0:00:27]} exf4 {[%emt 0:00:02]} 18. Rxf4 {[%emt 0:00:08]} Qg5 {[%emt 0:00:59]} 19. Raf1 {[%emt 0:00:10]} Qe5 {[%emt 0:00:04]} 20. c3 {[%emt 0:01:09]} d5 {[%emt 0:00:45]} 21. Bxd5 {[%emt 0:00:09]} b5 {[%emt 0:00:53]} 22. axb5 {[%emt 0:00:34]} Bxd5 {[%emt 0:00:26]} 23. Rf5 {[%emt 0:00:01]} Qe8 {[%emt 0:00:07]} 24. Rxd5 {[%emt 0:00:02]} Qxb5 {[%emt 0:00:02]} 25. b4 {[%emt 0:00:18]} Rbc8 {[%emt 0:00:07]} 26. Qf2 {[%emt 0:00:14]} Qa6 {[%emt 0:01:48]} 27. bxc5 {[%emt 0:00:06]} Qa3 {[%emt 0:00:02]} 28. c4 {[%emt 0:00:11]} a5 {[%emt 0:00:03]} 29. d4 {[%emt 0:02:14]} Qd3 {[%emt 0:00:28]} 30. c6 {[%emt 0:00:45]} Qxc4 {[%emt 0:00:25]} 31. Rc5 {[%emt 0:00:05]} Qe6 {[%emt 0:00:03]} 32. d5 {[%emt 0:00:25]} Qxe4 {[%emt 0:00:01]} 33. Rxa5 {[%emt 0:00:01]} h6 {[%emt 0:00:23]} 34. Rc5 {[%emt 0:00:44]} Kh8 {[%emt 0:00:15]} 35. c7 {[%emt 0:00:08]} Qe5 {[%emt 0:00:13]} 36. Qf4 {[%emt 0:00:10]} 1-0

[Event "Hungarian Junior Rapid-ch 2024"]
[Site "Budapest"]
[Date "2024.03.23"]
[Round "7"]
[White "Pasti, Aron"]
[Black "Szikszai, Bertalan"]
[Result "1-0"]
[ECO "B98"]
[WhiteElo "2373"]
[BlackElo "2312"]
[Annotator "RC"]
[PlyCount "81"]
[EventDate "2024.03.20"]
[EventType "swiss"]
[EventCountry "HUN"]
[SourceTitle "playchess.com"]
[Source "ChessBase"]
[SourceQuality "1"]
[TimeControl "600+5"]

1. e4 {[%emt 0:00:01]} c5 {[%emt 0:00:01]} 2. Nf3 d6 3. d4 {[%emt 0:00:02]} cxd4 {[%emt 0:00:02]} 4. Nxd4 {[%emt 0:00:01]} Nf6 {[%emt 0:00:01]} 5. Nc3 {[%emt 0:00:01]} a6 {[%emt 0:00:00]} 6. Bg5 {[%emt 0:00:01]} e6 {[%emt 0:00:03]} 7. f4 {[%emt 0:00:00]} h6 {[%emt 0:00:13]} 8. Bh4 {[%emt 0:00:05]} Be7 {[%emt 0:00:01]} 9. Qf3 {[%emt 0:00:10]} Qc7 {[%emt 0:00:02]} 10. O-O-O {[%emt 0:00:15]} Nbd7 {[%emt 0:00:02]} 11. Bg3 {[%emt 0:01:16]} b5 {[%emt 0:01:48]} 12. e5 {[%emt 0:00:25]} Bb7 {[%emt 0:00:01]} 13. Qe2 {[%emt 0:00:01]} dxe5 {[%emt 0:00:12]} 14. fxe5 {[%emt 0:00:01]} Nd5 {[%emt 0:00:14]} 15. Nxd5 {[%emt 0:00:01]} Bxd5 {[%emt 0:00:02]} 16. Nf5 {[%emt 0:00:01]} Rc8 {[%emt 0:02:48]} 17. Rxd5 {[%emt 0:00:59]} Bg5+ {[%emt 0:02:13]} 18. Kb1 {[%emt 0:00:02]} O-O {[%emt 0:00:18]} 19. h4 {[%emt 0:00:51]} Bd8 {[%emt 0:00:33]} 20. Rxd7 {[%emt 0:00:01]} Qxd7 {[%emt 0:00:03]} 21. Nd6 {[%emt 0:00:00]} Rc6 {[%emt 0:00:20]} 22. Qg4 {[%emt 0:00:17]} Be7 {[%emt 0:00:13]} 23. Bd3 {[%emt 0:00:29]} Bxd6 {[%emt 0:01:10]} 24. exd6 {[%emt 0:00:02]} Rc5 {[%emt 0:00:11]} 25. Re1 {[%emt 0:00:11]} Rd8 {[%emt 0:00:53]} 26. Be5 {[%emt 0:00:06]} Rxe5 {[%emt 0:00:01]} 27. Rxe5 {[%emt 0:00:02]} Qxd6 {[%emt 0:00:01]} 28. Qe4 {[%emt 0:00:10]} Qb6 {[%emt 0:00:16]} 29. a3 {[%emt 0:00:05]} Qg1+ {[%emt 0:00:27]} 30. Ka2 {[%emt 0:00:02]} Qh2 {[%emt 0:00:05]} 31. Qh7+ {[%emt 0:00:05]} Kf8 {[%emt 0:00:01]} 32. Qh8+ {[%emt 0:00:01]} Ke7 {[%emt 0:00:00]} 33. Qxg7 {[%emt 0:00:01]} Qxh4 {[%emt 0:00:09]} 34. Re4 {[%emt 0:00:13]} Qh5 {[%emt 0:00:05]} 35. Qe5 {[%emt 0:00:08]} Qh1 {[%emt 0:00:21]} 36. Qc5+ {[%emt 0:00:02]} Ke8 {[%emt 0:00:05]} 37. Rg4 {[%emt 0:00:02]} Rd5 {[%emt 0:00:08]} 38. Rg8+ {[%emt 0:00:08]} Kd7 {[%emt 0:00:01]} 39. Qc8+ {[%emt 0:00:02]} Kd6 {[%emt 0:00:01]} 40. Qb8+ {[%emt 0:00:01]} Kc5 {[%emt 0:00:09]} 41. Rc8+ {[%emt 0:00:02]} 1-0

[Event "Hungarian Junior Rapid-ch 2024"]
[Site "Budapest"]
[Date "2024.03.23"]
[Round "7"]
[White "Konyves, Almos"]
[Black "Tancsa, Tamas"]
[Result "1-0"]
[ECO "B38"]
[WhiteElo "2306"]
[BlackElo "2273"]
[Annotator "RC"]
[PlyCount "57"]
[EventDate "2024.03.20"]
[EventType "swiss"]
[EventCountry "HUN"]
[SourceTitle "playchess.com"]
[Source "ChessBase"]
[SourceQuality "1"]
[TimeControl "600+5"]

1. Nf3 {[%emt 0:00:01]} c5 {[%emt 0:00:01]} 2. c4 {[%emt 0:00:04]} Nc6 {[%emt 0:00:02]} 3. d4 {[%emt 0:00:03]} cxd4 {[%emt 0:00:11]} 4. Nxd4 {[%emt 0:00:01]} g6 {[%emt 0:00:03]} 5. e4 {[%emt 0:00:09]} Bg7 {[%emt 0:00:05]} 6. Be3 {[%emt 0:00:03]} Qb6 {[%emt 0:00:06]} 7. Nb3 {[%emt 0:00:32]} Qd8 {[%emt 0:00:04]} 8. Nc3 {[%emt 0:00:14]} Nf6 {[%emt 0:00:13]} 9. Be2 {[%emt 0:00:06]} O-O {[%emt 0:00:11]} 10. O-O {[%emt 0:00:03]} d6 {[%emt 0:00:19]} 11. Nd4 {[%emt 0:00:10]} Bd7 {[%emt 0:00:38]} 12. Rc1 {[%emt 0:00:02]} Rc8 {[%emt 0:00:02]} 13. f4 {[%emt 0:01:15]} a6 {[%emt 0:01:54]} 14. b3 {[%emt 0:00:42]} e6 {[%emt 0:00:42]} 15. Bf3 {[%emt 0:00:34]} Qe7 {[%emt 0:00:03]} 16. Qd2 {[%emt 0:00:36]} Rfd8 {[%emt 0:00:11]} 17. Rfd1 {[%emt 0:00:17]} Nxd4 {[%emt 0:01:03]} 18. Bxd4 {[%emt 0:00:01]} Bc6 {[%emt 0:00:01]} 19. Bb6 {[%emt 0:01:31]} Rd7 {[%emt 0:00:21]} 20. b4 {[%emt 0:00:26]} d5 {[%emt 0:01:09]} 21. cxd5 {[%emt 0:00:30]} Qxb4 {[%emt 0:00:45]} 22. Qf2 {[%emt 0:01:34]} Bb5 {[%emt 0:03:42]} 23. Nxb5 {[%emt 0:00:45]} Rxc1 {[%emt 0:00:07]} 24. Rxc1 {[%emt 0:00:01]} Qxb5 {[%emt 0:00:05]} 25. Rc8+ {[%emt 0:00:07]} Bf8 {[%emt 0:00:05]} 26. Qc5 {[%emt 0:01:37]} Qb1+ {[%emt 0:00:04]} 27. Kf2 {[%emt 0:00:02]} Qxa2+ {[%emt 0:00:05]} 28. Kg3 {[%emt 0:00:01]} Ne8 {[%emt 0:00:07]} 29. Rxe8 {[%emt 0:00:02]} 1-0

[Event "Hungarian Junior Rapid-ch 2024"]
[Site "Budapest"]
[Date "2024.03.23"]
[Round "7"]
[White "Palczert, Matyas"]
[Black "Csernyik, Mark"]
[Result "1-0"]
[ECO "B76"]
[WhiteElo "2297"]
[BlackElo "2016"]
[Annotator "RC"]
[PlyCount "72"]
[EventDate "2024.03.20"]
[EventType "swiss"]
[EventCountry "HUN"]
[SourceTitle "playchess.com"]
[Source "ChessBase"]
[SourceQuality "1"]
[TimeControl "600+5"]

1. e4 {[%emt 0:00:03]} c5 {[%emt 0:00:03]} 2. Nf3 {[%emt 0:00:01]} d6 {[%emt 0:00:03]} 3. d4 {[%emt 0:00:02]} cxd4 {[%emt 0:00:01]} 4. Nxd4 {[%emt 0:00:02]} Nf6 {[%emt 0:00:03]} 5. Nc3 {[%emt 0:00:04]} g6 {[%emt 0:00:03]} 6. Be3 {[%emt 0:00:06]} Bg7 {[%emt 0:00:02]} 7. f3 {[%emt 0:00:04]} O-O {[%emt 0:00:03]} 8. Qd2 {[%emt 0:00:03]} Nc6 {[%emt 0:00:02]} 9. O-O-O {[%emt 0:00:35]} d5 {[%emt 0:00:02]} 10. Kb1 {[%emt 0:00:02]} Nxd4 {[%emt 0:00:14]} 11. e5 {[%emt 0:00:04]} Nf5 {[%emt 0:00:03]} 12. exf6 {[%emt 0:00:02]} exf6 {[%emt 0:00:04]} 13. Bc5 {[%emt 0:00:02]} d4 {[%emt 0:00:02]} 14. Bxf8 {[%emt 0:00:04]} Qxf8 {[%emt 0:00:03]} 15. Nb5 {[%emt 0:00:03]} Ne3 {[%emt 0:00:02]} 16. Re1 {[%emt 0:00:04]} f5 {[%emt 0:00:02]} 17. f4 {[%emt 0:00:39]} Qc5 {[%emt 0:00:09]} 18. c3 {[%emt 0:00:06]} Nxf1 {[%emt 0:00:23]} 19. Re8+ {[%emt 0:00:06]} Bf8 {[%emt 0:00:02]} 20. Qxd4 {[%emt 0:00:05]} Qxb5 {[%emt 0:00:03]} 21. Qd8 {[%emt 0:00:21]} Nd2+ {[%emt 0:00:03]} 22. Kc2 {[%emt 0:00:39]} Qa4+ {[%emt 0:00:02]} 23. Kxd2 {[%emt 0:00:04]} Qxf4+ {[%emt 0:00:03]} 24. Kd1 {[%emt 0:00:21]} Qh6 {[%emt 0:00:06]} 25. Rhe1 {[%emt 0:00:29]} f4 {[%emt 0:00:02]} 26. R1e2 {[%emt 0:00:12]} b5 {[%emt 0:04:48]} 27. Qd5 {[%emt 0:01:08]} Rb8 {[%emt 0:00:07]} 28. Qe5 {[%emt 0:00:57]} Ra8 {[%emt 0:02:03]} 29. Qc7 {[%emt 0:01:59]} Bg4 {[%emt 0:02:25]} 30. Rxa8 {[%emt 0:00:06]} Qh5 {[%emt 0:00:36]} 31. Rae8 {[%emt 0:00:24]} Qxh2 {[%emt 0:00:38]} 32. Qe5 {[%emt 0:00:39]} Bxe2+ {[%emt 0:00:14]} 33. Qxe2 {[%emt 0:00:02]} Qh1+ {[%emt 0:00:06]} 34. Kc2 {[%emt 0:00:06]} Qh4 {[%emt 0:00:03]} 35. Qxb5 {[%emt 0:00:17]} Qg4 {[%emt 0:00:07]} 36. Qb4 {[%emt 0:00:42]} Qxg2+ 1-0

[Event "Hungarian Junior Rapid-ch 2024"]
[Site "Budapest"]
[Date "2024.03.23"]
[Round "7"]
[White "Foldes, Marton Gabor"]
[Black "Juhasz, Agoston"]
[Result "0-1"]
[ECO "B11"]
[WhiteElo "2162"]
[BlackElo "2406"]
[Annotator "TA"]
[PlyCount "108"]
[EventDate "2024.03.20"]
[EventType "swiss"]
[EventCountry "HUN"]
[SourceTitle "playchess.com"]
[Source "ChessBase"]
[SourceQuality "1"]
[TimeControl "600+5"]

{[%evp 13,108,8,26,20,23,25,17,18,24,24,23,20,48,16,27,8,25,1,0,-8,-3,-8,0,-15,-10,-17,-12,-15,-10,-14,0,-43,0,-21,0,-4,0,8,6,0,0,0,7,0,0,0,0,-4,0,-15,-6,-8,0,0,6,0,0,-68,-61,-402,-222,-229,-245,-220,-245,-249,-229,-249,-217,-220,-221,-371,-377,-372,-357,-345,-345,-427,-427,-420,-412,-405,-402,-355,-312,-29972,-29973,-29974,-29975,-29975,-29975,-29975,-29976,-29977,-29978,-29976,-29975]} 1. e4 {[%emt 0:00:01]} c6 {[%emt 0:00:01]} 2. Nf3 {[%emt 0:00:02]} d5 {[%emt 0:00:02]} 3. Nc3 {[%emt 0:00:01]} Bg4 {[%emt 0:00:03]} 4. h3 {[%emt 0:00:01]} Bxf3 {[%emt 0:00:02]} 5. Qxf3 {[%emt 0:00:02]} Nf6 {[%emt 0:00:04]} 6. Be2 {[%emt 0:01:19]} e6 {[%emt 0:00:04]} 7. O-O {[%emt 0:00:03]} Nbd7 {[%emt 0:00:05]} 8. d4 {[%emt 0:00:48]} dxe4 {[%emt 0:00:18]} 9. Nxe4 {[%emt 0:00:02]} Nxe4 {[%emt 0:00:02]} 10. Qxe4 {[%emt 0:00:02] The position is equal.} Nf6 {[%emt 0:00:02]} 11. Qe3 {[%emt 0:00:27]} Bd6 {[%emt 0:00:08]} 12. Bf3 {[%emt 0:00:56]} Nd5 {[%emt 0:00:49]} 13. Qe2 {[%emt 0:00:24]} O-O {[%emt 0:01:02]} 14. c4 {[%emt 0:00:05]} Nf4 {[%emt 0:00:08]} 15. Bxf4 {[%emt 0:00:24]} Bxf4 {[%emt 0:00:02]} 16. Rad1 {[%emt 0:02:32]} Bd6 {[%emt 0:00:13]} 17. g3 {[%emt 0:00:51]} Qf6 {[%emt 0:00:08]} 18. Bg2 {[%emt 0:00:17]} Rad8 {[%emt 0:00:04]} 19. Qe3 {[%emt 0:00:15]} Rd7 {[%emt 0:00:28]} 20. Rd3 {[%emt 0:00:26]} Rfd8 {[%emt 0:00:15][%cal Od6c5] White must now prevent ...Bc5!} 21. Rfd1 {[%emt 0:00:01]} Bc7 {[%emt 0:00:03]} 22. Qf3 {[%emt 0:01:34]} Qe7 {[%emt 0:01:03]} (22... Rxd4 {simplifies} 23. Qxf6 Rxd3 24. Rxd3 gxf6 25. Rxd8+ Bxd8 26. b4 f5) 23. d5 {[%emt 0:00:29]} exd5 {[%emt 0:00:43]} 24. cxd5 {[%emt 0:00:01]} c5 {[%emt 0:00:00]} 25. Re3 {[%emt 0:00:08]} Qd6 {[%emt 0:00:15]} 26. Rde1 {[%emt 0:00:06] [#] Re8+ is the strong threat.} Rf8 {[%emt 0:00:35]} 27. h4 {[%emt 0:00:25]} c4 {[%emt 0:00:42]} 28. h5 {[%emt 0:00:13]} b5 {[%emt 0:00:50]} 29. Qg4 {[%emt 0:00:07][%cal Oh5h6]} Bb6 {[%emt 0:00:21]} 30. Re8 {[%emt 0:00:12]} Rd8 {[%emt 0:00:01][%cal Bd7d8,Bd8c8,Bc8c5,Bc5d5][%mdl 32]} 31. R8e2 {[%emt 0:00:17]} Rc8 {[%emt 0:00:40]} 32. Be4 {[%emt 0:00:04]} b4 {[%emt 0:00:43]} 33. Bf5 {[%emt 0:00:02]} Rc5 {[%emt 0:00:25] Black is weak on the light squares} 34. Re8 {[%emt 0:00:05]} Rxd5 {[%emt 0:00:20][%cal Ob6f2] And now ...Bxf2+! would win.} (34... Qxd5 $2 35. h6 (35. Bxh7+ Kxh7 36. Rxf8 Qxh5 $18) 35... g6 36. Bd7 $18) 35. Rxf8+ {[%emt 0:00:02]} (35. Bxh7+ $1 $11 Kh8 (35... Kxh7 36. Rxf8 Bxf2+ 37. Kxf2 $11) 36. Rxf8+ Qxf8 37. Bc2 (37. Qxc4 $2 Qd6 $19)) 35... Kxf8 $15 {[%emt 0:00:15]} 36. Qe2 $2 {[%emt 0:00:07][%mdl 8192] Now White is beyond hope.} Qxg3+ {[%emt 0:00:31]} (36... Rxf5 37. Qe8#) (36... g6 $142 37. h6 Qxg3+ (37... gxf5 38. Qe8#) 38. Kf1 Qxf2+ (38... Rxf5 39. Qe8#) 39. Qxf2 Bxf2 (39... Rxf5 40. Qxf5 gxf5 41. Rc1 $16) 40. Kxf2 Rxf5+ 41. Kg2 Ra5) 37. Kf1 $19 {[%emt 0:00:00][%csl Ge1][%cal Re2e8]} Qxf2+ {[%emt 0:00:08]} (37... Rxf5 38. Qe8#) 38. Qxf2 {[%emt 0:00:03]} Bxf2 {[%emt 0:00:01][%mdl 4096] Endgame. KRB-KRB} 39. Be4 {[%emt 0:00:10]} Rd2 {[%emt 0:00:29]} (39... Rxh5 40. Kxf2 Re5 41. Bf3 (41. Bxh7 $2 {loses.} Rxe1 42. Kxe1 g6 $19) 41... Rxe1 42. Kxe1 $11) 40. Rc1 {[%emt 0:00:09]} Bb6 {[%emt 0:00:47]} (40... Rxb2 41. Rxc4 Bb6 (41... Rxa2 $2 42. Rxb4 g6 43. Rb8+ Kg7 44. Rb7 $19) 42. Bd5 $19) 41. Rxc4 {[%emt 0:00:02]} Rxb2 {[%emt 0:00:01]} 42. Bxh7 {[%emt 0:00:06]} (42. Rc2 $142 Rxc2 43. Bxc2) 42... Rf2+ {[%emt 0:00:10]} ({Don't play} 42... Rxa2 43. Rxb4 Rf2+ 44. Ke1 $19) 43. Ke1 {[%emt 0:00:02]} Rxa2 {[%emt 0:00:02] Threatens to win with ...b3.} 44. Kd1 {[%emt 0:00:11]} Rh2 {[%emt 0:00:25]} 45. Rxb4 {[%emt 0:00:08]} Rxh5 {[%emt 0:00:03]} 46. Bd3 {[%emt 0:00:03]} Re5 {[%emt 0:00:08]} 47. Rc4 {[%emt 0:00:03]} Ke7 {[%emt 0:00:02]} 48. Rc8 {[%emt 0:00:08]} Kf6 {[%emt 0:00:04]} 49. Bc4 $2 {[%emt 0:00:07] [#]} (49. Rf8 $19) 49... Rc5 {[%emt 0:00:12] Black mates.} 50. Rxc5 {[%emt 0:00:05]} Bxc5 {[%emt 0:00:01]} 51. Ke2 {[%emt 0:00:03]} g5 {[%emt 0:00:06]} 52. Kf3 {[%emt 0:00:07]} Kg6 {[%emt 0:00:02]} 53. Bd3+ {[%emt 0:00:05]} f5 {[%emt 0:00:01]} 54. Bb5 {[%emt 0:00:02]} Kf6 {Weighted Error Value: White=0.38/Black=0.13 (very precise) .  Loses game:     	White=1     	---        Mistake:       	White=3     	Black=1      Inaccurate:     	White=2     	Black=2      OK:         	White=5     	Black=15     Best:        	White=4     	Black=2} 0-1

[Event "Hungarian Junior Rapid-ch 2024"]
[Site "Budapest"]
[Date "2024.03.23"]
[Round "8"]
[White "Karacsonyi, Gellert"]
[Black "Konyves, Almos"]
[Result "1-0"]
[ECO "C55"]
[WhiteElo "2386"]
[BlackElo "2306"]
[Annotator "RC"]
[PlyCount "39"]
[EventDate "2024.03.20"]
[EventType "swiss"]
[EventCountry "HUN"]
[SourceTitle "playchess.com"]
[Source "ChessBase"]
[SourceQuality "1"]
[TimeControl "600+5"]

1. e4 {[%emt 0:00:01]} e5 {[%emt 0:00:03]} 2. Nf3 {[%emt 0:00:01]} Nc6 {[%emt 0:00:00]} 3. d4 {[%emt 0:00:02]} exd4 {[%emt 0:00:02]} 4. Bc4 {[%emt 0:00:01]} Nf6 {[%emt 0:00:03]} 5. e5 {[%emt 0:00:02]} d5 {[%emt 0:00:01]} 6. Bb5 {[%emt 0:00:01]} Ne4 {[%emt 0:00:01]} 7. Nxd4 {[%emt 0:00:02]} Bc5 {[%emt 0:00:02]} 8. Be3 {[%emt 0:00:08]} O-O {[%emt 0:00:31]} 9. Nxc6 {[%emt 0:00:02]} bxc6 {[%emt 0:00:12]} 10. Bxc5 {[%emt 0:00:02]} Nxc5 {[%emt 0:01:12]} 11. Bxc6 {[%emt 0:00:01]} Rb8 {[%emt 0:00:00]} 12. Qxd5 {[%emt 0:00:02]} Qxd5 {[%emt 0:00:33]} 13. Bxd5 {[%emt 0:00:01]} Rxb2 {[%emt 0:00:01]} 14. Na3 {[%emt 0:00:03]} Ba6 {[%emt 0:00:48]} 15. O-O-O {[%emt 0:00:07]} Rb4 {[%emt 0:00:34]} 16. Rhe1 {[%emt 0:00:38]} Na4 {[%emt 0:01:07]} 17. Bb3 {[%emt 0:00:12]} Nb6 {[%emt 0:00:03]} 18. g3 {[%emt 0:00:33]} c5 {[%emt 0:01:46]} 19. c3 {[%emt 0:00:17]} Rg4 {[%emt 0:00:12]} 20. e6 {[%emt 0:00:01]} 1-0